fUST/lending_fUST_20240805
["ID","MTS","AMOUNT","RATE_DAILY","PERIOD"]
[334258984,1722872954031,-154.72922386,0.00021542,2]
[334258985,1722872954052,-156.11968405,0.00021542,2]
[334258986,1722872954072,-158.91248787,0.00021542,2]
[334258987,1722872954093,-222.09576996,0.00021542,2]
[334258988,1722872954113,-435.0,0.00021542,2]
[334258989,1722872954134,-296.94154668,0.00021542,2]
[334258990,1722872954154,-174.28065253,0.00021542,2]
[334258991,1722872954174,-294.09032939,0.00021542,2]
[334258992,1722872954194,-1060.99846949,0.00021542,2]
[334258993,1722872954220,-849.47006365,0.00021542,2]
[334258994,1722872954240,-283.31609718,0.00021542,2]
[334258995,1722872954260,-165.54898858,0.00021589,2]
[334258996,1722872954280,-154.63660398,0.00021589,2]
[334258997,1722872954302,-165.54898858,0.00021589,2]
[334258998,1722872954322,-231.72965526,0.00021589,2]
[334258999,1722872954343,-156.83214814,0.00021591,2]
[334259000,1722872954364,-154.79103211,0.00021591,2]
[334259001,1722872954385,-7773.90428076,0.00021599,2]
[334259002,1722872954405,-154.63660398,0.00021602,2]
[334259003,1722872954426,-155.25435631,0.00021602,2]
[334259004,1722872954448,-500.0,0.00021905,2]
[334259005,1722872954483,-373.46267211,0.00021905,2]
[334259006,1722872954505,-500.0,0.00021905,2]
[334259007,1722872954529,-500.0,0.00021905,2]
[334259008,1722872954551,-168.878792,0.00023156,2]
[334259009,1722872954573,-188.91713767,0.00023248,2]
[334259010,1722872954594,-175.37858355,0.00023248,2]
[334259011,1722872954616,-622.16149228,0.00023543,2]
[334259012,1722872954638,-620.10807461,0.0002472,2]
[334259013,1722872954660,-620.00540373,0.00025956,2]
[334259014,1722872954683,-369.05,0.000266,31]
[334259015,1722872954706,-369.05,0.000266,31]
[334259016,1722872954730,-369.05,0.000266,31]
[334259017,1722872954753,-369.05,0.000266,31]
[334259018,1722872954777,-369.05,0.000266,31]
[334259019,1722872954802,-369.05,0.000266,31]
[334259020,1722872954826,-369.05,0.000266,31]
[334259021,1722872954850,-369.05,0.000266,31]
[334259022,1722872954877,-369.05,0.000266,31]
[334259023,1722872954902,-369.05,0.000266,31]
[334259024,1722872954928,-369.05,0.000266,31]
[334259025,1722872954952,-369.05,0.000266,31]
[334259026,1722872954983,-369.05,0.000266,31]
[334259027,1722872955009,-369.05,0.000266,31]
[334259028,1722872955032,-369.05,0.000266,31]
[334259029,1722872955056,-369.05,0.000266,31]
[334259030,1722872955080,-369.05,0.000266,31]
[334259031,1722872955103,-369.05,0.000266,31]
[334259032,1722872955126,-369.05,0.000266,31]
[334259033,1722872955149,-369.05,0.000266,31]
[334259034,1722872955170,-363.468077,0.00026615,2]
[334259035,1722872955191,-2395.09747727,0.00027,14]
[334259036,1722872955219,-2494.31574553,0.00027,2]
[334259037,1722872955239,-189.52144051,0.00027,2]
[334259038,1722872955260,-620.00027019,0.00027254,2]
[334259039,1722872955280,-620.00001351,0.00028616,2]
[334259040,1722872955301,-1000.0,0.000299,5]
[334259041,1722872955322,-151.0,0.0003,120]
[334259042,1722872955342,-151.0,0.0003,120]
[334259043,1722872955364,-5880.66572787,0.0003039,4]
[334259044,1722872955388,-369.05,0.000304,31]
[334259045,1722872955411,-369.05,0.000304,31]
[334259046,1722872955435,-369.05,0.000304,31]
[334259047,1722872955463,-369.05,0.000304,31]
[334259048,1722872955487,-369.05,0.000304,31]
[334259049,1722872955512,-75.49128811,0.000304,31]
[334259050,1722872956098,-154.63660398,0.00021599,2]
[334259051,1722872956118,-8707.88961849,0.00021642,2]
[334259053,1722872962151,-155.25435631,0.00021599,2]
[334259054,1722872962172,-6127.17781589,0.00021642,2]
[334259055,1722872962231,-71199.17521405,0.00021642,2]
[334259056,1722872962258,-293.55871189,0.000304,31]
[334259057,1722872962283,-369.05,0.000304,31]
[334259058,1722872962308,-369.05,0.000304,31]
[334259059,1722872962332,-369.05,0.000304,31]
[334259060,1722872962355,-369.05,0.000304,31]
[334259061,1722872962379,-369.05,0.000304,31]
[334259062,1722872962404,-369.05,0.000304,31]
[334259063,1722872962429,-369.05,0.000304,31]
[334259064,1722872962453,-369.05,0.000304,31]
[334259065,1722872962485,-369.05,0.000304,31]
[334259066,1722872962510,-369.05,0.000304,31]
[334259067,1722872962534,-369.05,0.000304,31]
[334259068,1722872962739,-369.05,0.000304,31]
[334259069,1722872962762,-369.05,0.000304,31]
[334259070,1722872962785,-369.05,0.000304,31]
[334259071,1722872962806,-1000.0,0.000304,5]
[334259072,1722872962827,-1000.0,0.000309,5]
[334259073,1722872962848,-230.3851061,0.00031507,120]
[334259074,1722872962868,-1169.0,0.00032877,2]
[334259075,1722872962892,-151.0,0.00033534,120]
[334259076,1722872962915,-369.05,0.000343,31]
[334259077,1722872962938,-369.05,0.000343,31]
[334259078,1722872962964,-369.05,0.000343,31]
[334259079,1722872962988,-369.05,0.000343,31]
[334259080,1722872963011,-369.05,0.000343,31]
[334259081,1722872963033,-369.05,0.000343,31]
[334259082,1722872963057,-369.05,0.000343,31]
[334259083,1722872963081,-369.05,0.000343,31]
[334259084,1722872963104,-369.05,0.000343,31]
[334259085,1722872963129,-369.05,0.000343,31]
[334259086,1722872963153,-369.05,0.000343,31]
[334259087,1722872963177,-369.05,0.000343,31]
[334259088,1722872963201,-369.05,0.000343,31]
[334259089,1722872963235,-369.05,0.000343,31]
[334259090,1722872963259,-369.05,0.000343,31]
[334259091,1722872963283,-369.05,0.000343,31]
[334259092,1722872963307,-369.05,0.000343,31]
[334259093,1722872963331,-369.05,0.000343,31]
[334259094,1722872963356,-369.05,0.000343,31]
[334259095,1722872963387,-369.05,0.000343,31]
[334259096,1722872963410,-151.0,0.00035452,120]
[334259097,1722872963433,-151.0,0.00037068,120]
[334259098,1722872965551,156.83214814,0.00021589,2]
[334259099,1722872966825,154.63660398,0.00021532,2]
[334259100,1722872968060,413.94710366,0.0002142,2]
[334259101,1722872968487,154.63660398,0.00021542,2]
[334259107,1722872990471,223.31822465,0.0002,2]
[334259108,1722872994288,185.1,0.000266,31]
[334259109,1722872994339,185.1,0.000266,31]
[334259110,1722872994397,185.1,0.000266,31]
[334259111,1722872994463,185.1,0.000266,31]
[334259112,1722872994584,185.1,0.000266,31]
[334259113,1722872994648,185.1,0.000266,31]
[334259114,1722872994694,185.1,0.000266,31]
[334259115,1722872994757,185.1,0.000266,31]
[334259116,1722872994832,185.1,0.000266,31]
[334259117,1722872994878,185.1,0.000266,31]
[334259118,1722872994959,185.1,0.000266,31]
[334259119,1722872994998,185.1,0.000266,31]
[334259120,1722872995050,185.1,0.000266,31]
[334259121,1722872995114,185.1,0.000266,31]
[334259122,1722872995191,185.1,0.000266,31]
[334259123,1722872995239,185.1,0.000266,31]
[334259124,1722872995306,185.1,0.000266,31]
[334259125,1722872995380,185.1,0.000266,31]
[334259126,1722872995438,185.1,0.000266,31]
[334259127,1722872995493,185.1,0.000266,31]
[334259128,1722872995557,185.1,0.000304,31]
[334259130,1722872995605,185.1,0.000304,31]
[334259131,1722872995666,185.1,0.000304,31]
[334259132,1722872995725,185.1,0.000304,31]
[334259133,1722872995787,185.1,0.000304,31]
[334259134,1722872995873,185.1,0.000304,31]
[334259135,1722872995916,185.1,0.000304,31]
[334259136,1722872995966,185.1,0.000304,31]
[334259137,1722872996029,185.1,0.000304,31]
[334259138,1722872996098,185.1,0.000304,31]
[334259139,1722872996159,185.1,0.000304,31]
[334259140,1722872996372,185.1,0.000304,31]
[334259141,1722872996403,185.1,0.000304,31]
[334259142,1722872996434,185.1,0.000304,31]
[334259143,1722872996464,185.1,0.000304,31]
[334259144,1722872996493,185.1,0.000304,31]
[334259145,1722872996524,185.1,0.000304,31]
[334259146,1722872996585,185.1,0.000304,31]
[334259147,1722872996641,185.1,0.000304,31]
[334259148,1722872996691,185.1,0.000304,31]
[334259149,1722872996753,185.1,0.000343,31]
[334259150,1722872996828,185.1,0.000343,31]
[334259151,1722872996883,185.1,0.000343,31]
[334259152,1722872996945,185.1,0.000343,31]
[334259153,1722872996994,185.1,0.000343,31]
[334259154,1722872997078,185.1,0.000343,31]
[334259155,1722872997122,185.1,0.000343,31]
[334259156,1722872997172,185.1,0.000343,31]
[334259157,1722872997242,185.1,0.000343,31]
[334259158,1722872997303,185.1,0.000343,31]
[334259159,1722872997361,185.1,0.000343,31]
[334259160,1722872997422,185.1,0.000343,31]
[334259161,1722872997486,185.1,0.000343,31]
[334259162,1722872997558,185.1,0.000343,31]
[334259163,1722872997623,185.1,0.000343,31]
[334259164,1722872997667,185.1,0.000343,31]
[334259165,1722872997749,184.67958215,0.000343,31]
[334259166,1722872997797,0.42041785,0.000343,31]
[334259167,1722872997835,185.1,0.000343,31]
[334259168,1722872997866,185.1,0.000343,31]
[334259169,1722872998103,185.1,0.000343,31]
[334259172,1722873012469,151.0,0.0003,120]
[334259173,1722873013058,151.0,0.00033753,120]
[334259174,1722873030962,462.74231828,0.00021916,2]
[334259175,1722873031649,154.79103211,0.00021916,2]
[334259205,1722873032246,-2243.47400579,0.00031069,120]
[334259206,1722873032256,-183.0,0.00031069,30]
[334259207,1722873032265,-151.0,0.00037507,120]
[334259208,1722873032275,-185.1,0.000381,31]
[334259209,1722873032284,-185.1,0.000381,31]
[334259210,1722873032294,-185.1,0.000381,31]
[334259211,1722873032304,-185.1,0.000381,31]
[334259212,1722873032317,-185.1,0.000381,31]
[334259213,1722873032333,-185.1,0.000381,31]
[334259214,1722873032342,-185.1,0.000381,31]
[334259215,1722873032352,-185.1,0.000381,31]
[334259216,1722873032362,-185.1,0.000381,31]
[334259217,1722873032371,-185.1,0.000381,31]
[334259218,1722873032381,-185.1,0.000381,31]
[334259219,1722873032391,-185.1,0.000381,31]
[334259220,1722873032400,-185.1,0.000381,31]
[334259221,1722873032410,-185.1,0.000381,31]
[334259222,1722873032419,-185.1,0.000381,31]
[334259223,1722873032429,-185.1,0.000381,31]
[334259224,1722873032440,-185.1,0.000381,31]
[334259225,1722873032451,-185.1,0.000381,31]
[334259226,1722873032461,-185.1,0.000381,31]
[334259227,1722873032471,-185.1,0.000381,31]
[334259228,1722873032481,-200.0,0.00038534,120]
[334259229,1722873032491,-4950.55549454,0.00039,120]
[334259230,1722873032505,-3917.44450546,0.00039,120]
[334259231,1722873032515,-150.112233,0.00039,6]
[334259232,1722873032524,-155.0,0.0003967,42]
[334259233,1722873032533,-5880.66572787,0.0003999,5]
[334259234,1722873032544,-504.84,0.0003999,3]
[334259235,1722873032553,-2000.0,0.00039999,30]
[334259236,1722873032577,-531.93753367,0.0004,30]
[334259237,1722873032589,-1294.76841677,0.0004,30]
[334259238,1722873032601,-3173.29404956,0.0004,30]
[334259239,1722873032611,-8868.0,0.0004,120]
[334259240,1722873032620,-1017.0,0.0004,120]
[334259241,1722873032631,-766.17,0.0004,32]
[334259242,1722873032641,-200.0,0.0004,2]
[334259243,1722873032652,-13367.03595044,0.0004,2]
[334259244,1722873032663,-823.0,0.0004,2]
[334259245,1722873033294,874.78084023,0.00021916,2]
[334259276,1722873038329,3553.50693518,0.00021916,2]
[334259277,1722873038351,6983.71812662,0.00021916,2]
[334259278,1722873038374,5526.15283412,0.00021916,2]
[334259279,1722873038399,1988.31339732,0.00021916,2]
[334259282,1722873038420,205.74571138,0.00021916,2]
[334259283,1722873038580,-24084.27690674,0.00021916,2]
[334259284,1722873038590,-1006.31,0.0003999,3]
[334259285,1722873038603,-500.0,0.00039999,31]
[334259286,1722873038612,-500.0,0.00039999,31]
[334259287,1722873038623,-311.42387048,0.00039999,31]
[334259288,1722873038632,-157563.83800361,0.0004,2]
[334259289,1722873038642,-17641.9971836,0.0004043,5]
[334259290,1722873038651,-173990.0,0.0004044,30]
[334259291,1722873038661,-4762.22247464,0.00040475,2]
[334259292,1722873038670,-4762.22247464,0.00040601,2]
[334259293,1722873038679,-5880.66572787,0.00040633,5]
[334259294,1722873038689,-500.0,0.00040643,120]
[334259295,1722873038698,-500.0,0.00040643,120]
[334259296,1722873038707,-500.0,0.00040643,120]
[334259297,1722873038717,-500.0,0.00040643,120]
[334259298,1722873038726,-500.0,0.00040643,120]
[334259299,1722873038735,-500.0,0.00040643,120]
[334259300,1722873038745,-500.0,0.00040643,120]
[334259301,1722873038754,-296.14,0.00040643,120]
[334259302,1722873038763,-500.0,0.00040643,120]
[334259303,1722873038772,-500.0,0.00040643,120]
[334259304,1722873038782,-500.0,0.00040643,120]
[334259305,1722873038791,-500.0,0.00040643,120]
[334259306,1722873038800,-500.0,0.00040643,120]
[334259307,1722873038810,-500.0,0.00040643,120]
[334259308,1722873038824,-500.0,0.00040643,120]
[334259309,1722873038834,-500.0,0.00040643,120]
[334259310,1722873038844,-500.0,0.00040643,120]
[334259311,1722873038854,-500.0,0.00040643,120]
[334259312,1722873038864,-500.0,0.00040643,120]
[334259313,1722873038873,-500.0,0.00040643,120]
[334259314,1722873038882,-500.0,0.00040643,120]
[334259315,1722873038891,-500.0,0.00040643,120]
[334259316,1722873038901,-500.0,0.00040643,120]
[334259317,1722873038910,-500.0,0.00040643,120]
[334259318,1722873038919,-500.0,0.00040643,120]
[334259319,1722873038930,-500.0,0.00040643,120]
[334259320,1722873038941,-500.0,0.00040643,120]
[334259321,1722873038950,-500.0,0.00040643,120]
[334259322,1722873038959,-500.0,0.00040643,120]
[334259323,1722873038969,-500.0,0.00040643,120]
[334259324,1722873038978,-500.0,0.00040643,120]
[334259325,1722873038988,-500.0,0.00040643,120]
[334259326,1722873038997,-500.0,0.00040643,120]
[334259327,1722873039018,-500.0,0.00040643,120]
[334259328,1722873039028,-500.0,0.00040643,120]
[334259329,1722873039038,-500.0,0.00040643,120]
[334259330,1722873039048,-500.0,0.00040643,120]
[334259331,1722873039057,-500.0,0.00040643,120]
[334259332,1722873039071,-500.0,0.00040643,120]
[334259333,1722873039081,-500.0,0.00040643,120]
[334259334,1722873039091,-500.0,0.00040643,120]
[334259335,1722873039100,-500.0,0.00040643,120]
[334259336,1722873039110,-500.0,0.00040643,120]
[334259337,1722873039119,-500.0,0.00040643,120]
[334259338,1722873039129,-500.0,0.00040643,120]
[334259339,1722873039139,-500.0,0.00040643,120]
[334259340,1722873039148,-500.0,0.00040643,120]
[334259341,1722873039157,-500.0,0.00040643,120]
[334259342,1722873039167,-500.0,0.00040643,120]
[334259343,1722873039176,-500.0,0.00040643,120]
[334259344,1722873039186,-500.0,0.00040643,120]
[334259345,1722873039196,-500.0,0.00040643,120]
[334259346,1722873039205,-500.0,0.00040643,120]
[334259347,1722873039215,-337.97,0.00040643,120]
[334259348,1722873039225,-500.0,0.00040643,120]
[334259349,1722873039234,-150.0,0.00040643,2]
[334259350,1722873039244,-152.0,0.00040756,15]
[334259351,1722873039254,-461.09313032,0.00040899,2]
[334259352,1722873039263,-151.0,0.00040904,120]
[334259353,1722873039272,-4762.22247464,0.00040967,2]
[334259354,1722873039282,-5880.66572787,0.0004099,5]
[334259355,1722873039291,-2000.0,0.00040999,30]
[334259356,1722873039301,-5000.0,0.00041,41]
[334259357,1722873039310,-8868.0,0.00041,120]
[334259358,1722873039323,-20000.0,0.00041,3]
[334259359,1722873039337,-1054.44375273,0.00041,14]
[334259360,1722873039346,-1000.0,0.00041,41]
[334259361,1722873039356,-150.0,0.0004108,2]
[334259362,1722873039366,-35283.9943672,0.00041085,5]
[334259363,1722873039375,-2000.0,0.00041094,30]
[334259364,1722873039385,-2000.0,0.00041094,30]
[334259365,1722873039394,-2000.0,0.00041094,30]
[334259366,1722873039404,-2000.0,0.00041094,30]
[334259367,1722873039414,-500.0,0.00041095,31]
[334259368,1722873039423,-500.0,0.00041095,31]
[334259369,1722873039434,-500.0,0.00041095,31]
[334259370,1722873039444,-500.0,0.00041095,31]
[334259371,1722873039453,-500.0,0.00041095,31]
[334259372,1722873039463,-625.07029682,0.00041095,31]
[334259373,1722873039472,-500.0,0.00041095,31]
[334259374,1722873039483,-500.0,0.00041095,31]
[334259375,1722873039492,-368.28,0.00041095,31]
[334259376,1722873039502,-500.0,0.00041095,31]
[334259377,1722873039511,-500.0,0.00041095,31]
[334259378,1722873039521,-500.0,0.00041095,31]
[334259379,1722873039530,-500.0,0.00041095,31]
[334259380,1722873039540,-500.0,0.00041095,31]
[334259381,1722873039549,-2349.98,0.00041095,31]
[334259382,1722873039558,-436.17,0.00041095,31]
[334259383,1722873039573,-500.0,0.00041095,31]
[334259384,1722873039583,-274.19,0.00041095,31]
[334259385,1722873039592,-500.0,0.00041095,31]
[334259386,1722873039601,-500.0,0.00041095,31]
[334259387,1722873039611,-540.16,0.00041095,31]
[334259388,1722873039622,-500.0,0.00041095,31]
[334259389,1722873039632,-500.0,0.00041095,31]
[334259390,1722873039641,-500.0,0.00041095,31]
[334259391,1722873039651,-500.0,0.00041095,31]
[334259392,1722873039660,-500.0,0.00041095,31]
[334259393,1722873039670,-150.86392025,0.00041095,31]
[334259394,1722873039679,-500.0,0.00041095,31]
[334259395,1722873039689,-500.0,0.00041095,31]
[334259396,1722873039698,-500.0,0.00041095,31]
[334259397,1722873039707,-505.5090072,0.00041095,31]
[334259398,1722873039717,-500.0,0.00041095,31]
[334259399,1722873039726,-500.0,0.00041095,31]
[334259400,1722873039736,-500.0,0.00041095,31]
[334259401,1722873039745,-500.0,0.00041095,31]
[334259402,1722873039755,-500.0,0.00041095,31]
[334259404,1722873039766,-500.0,0.00041095,31]
[334259406,1722873039776,-500.0,0.00041095,31]
[334259408,1722873039786,-500.0,0.00041095,31]
[334259409,1722873039795,-500.0,0.00041095,31]
[334259410,1722873039805,-500.0,0.00041095,31]
[334259411,1722873039814,-587.27,0.00041095,31]
[334259412,1722873039828,-248.04395445,0.00041095,31]
[334259413,1722873039837,-500.0,0.00041095,31]
[334259414,1722873039848,-500.0,0.00041095,31]
[334259416,1722873039866,-500.0,0.00041095,31]
[334259418,1722873039880,-500.0,0.00041095,31]
[334259420,1722873039890,-500.0,0.00041095,31]
[334259422,1722873039901,-500.0,0.00041095,31]
[334259423,1722873039911,-500.0,0.00041095,31]
[334259424,1722873039922,-500.0,0.00041095,31]
[334259425,1722873039935,-500.0,0.00041095,31]
[334259426,1722873039946,-500.0,0.00041095,31]
[334259427,1722873039956,-500.0,0.00041095,31]
[334259428,1722873039967,-500.0,0.00041095,31]
[334259429,1722873039979,-500.0,0.00041095,31]
[334259430,1722873039991,-504.44702231,0.00041095,31]
[334259431,1722873040002,-500.0,0.00041095,31]
[334259432,1722873040015,-500.0,0.00041095,31]
[334259433,1722873040025,-500.0,0.00041095,31]
[334259434,1722873040035,-500.0,0.00041095,31]
[334259435,1722873040045,-500.0,0.00041095,31]
[334259436,1722873040055,-500.0,0.00041095,31]
[334259437,1722873040064,-500.0,0.00041095,21]
[334259438,1722873040081,-500.0,0.00041095,31]
[334259439,1722873040091,-500.0,0.00041095,31]
[334259440,1722873040103,-500.0,0.00041095,31]
[334259441,1722873040113,-500.0,0.00041095,31]
[334259442,1722873040123,-500.0,0.00041095,31]
[334259443,1722873040133,-500.0,0.00041095,31]
[334259445,1722873040143,-500.0,0.00041095,31]
[334259447,1722873040152,-507.17993449,0.00041095,31]
[334259449,1722873040162,-500.0,0.00041095,31]
[334259451,1722873040172,-500.0,0.00041095,31]
[334259452,1722873040181,-500.0,0.00041095,31]
[334259454,1722873040193,-515.98,0.00041095,31]
[334259457,1722873040203,-500.0,0.00041095,31]
[334259458,1722873040212,-500.0,0.00041095,31]
[334259460,1722873040222,-500.0,0.00041095,31]
[334259462,1722873040232,-500.0,0.00041095,31]
[334259464,1722873040241,-165.13,0.00041095,31]
[334259466,1722873040251,-500.0,0.00041095,31]
[334259468,1722873040260,-500.0,0.00041095,31]
[334259470,1722873040271,-500.0,0.00041095,31]
[334259472,1722873040280,-500.0,0.00041095,31]
[334259474,1722873040290,-500.0,0.00041095,31]
[334259476,1722873040299,-500.0,0.00041095,31]
[334259478,1722873040309,-500.0,0.00041095,31]
[334259499,1722873040520,-500.0,0.00041095,31]
[334259501,1722873040530,-500.0,0.00041095,31]
[334259503,1722873040540,-500.0,0.00041095,30]
[334259505,1722873040549,-500.0,0.00041095,31]
[334259507,1722873040559,-500.0,0.00041095,31]
[334259509,1722873040571,-500.0,0.00041095,31]
[334259511,1722873040581,-500.0,0.00041095,31]
[334259513,1722873040591,-500.0,0.00041095,31]
[334259515,1722873040602,-504.66145901,0.00041095,31]
[334259517,1722873040611,-500.0,0.00041095,31]
[334259519,1722873040621,-500.0,0.00041095,31]
[334259520,1722873040631,-500.0,0.00041095,31]
[334259522,1722873040640,-500.0,0.00041095,31]
[334259524,1722873040649,-500.0,0.00041095,31]
[334259526,1722873040659,-500.0,0.00041095,31]
[334259528,1722873040669,-500.0,0.00041095,31]
[334259530,1722873040678,-500.0,0.00041095,31]
[334259532,1722873040688,-500.0,0.00041095,31]
[334259535,1722873040698,-576.25830808,0.00041095,31]
[334259537,1722873040709,-500.0,0.00041095,31]
[334259539,1722873040719,-577.96555564,0.00041095,31]
[334259541,1722873040728,-500.0,0.00041095,31]
[334259543,1722873040737,-500.0,0.00041095,31]
[334259545,1722873040747,-500.0,0.00041095,31]
[334259547,1722873040757,-500.0,0.00041095,31]
[334259549,1722873040766,-500.0,0.00041095,31]
[334259551,1722873040775,-408.8,0.00041095,31]
[334259553,1722873040784,-471.34,0.00041095,31]
[334259555,1722873040794,-500.0,0.00041095,31]
[334259557,1722873040804,-500.0,0.00041095,31]
[334259559,1722873040813,-500.0,0.00041095,31]
[334259561,1722873040827,-554.60123994,0.00041095,31]
[334259563,1722873040836,-500.0,0.00041095,31]
[334259565,1722873040846,-500.0,0.00041095,31]
[334259567,1722873040855,-500.0,0.00041095,31]
[334259569,1722873040866,-500.0,0.00041095,31]
[334259571,1722873040875,-500.0,0.00041095,31]
[334259573,1722873040884,-500.0,0.00041095,31]
[334259575,1722873040893,-500.0,0.00041095,31]
[334259576,1722873040904,-500.0,0.00041095,31]
[334259577,1722873040913,-500.0,0.00041095,31]
[334259578,1722873040924,-500.0,0.00041095,31]
[334259579,1722873040936,-500.0,0.00041095,31]
[334259580,1722873040946,-500.0,0.00041095,31]
[334259581,1722873040955,-500.0,0.00041095,31]
[334259582,1722873040965,-500.0,0.00041095,31]
[334259583,1722873040974,-500.0,0.00041095,31]
[334259584,1722873040984,-500.0,0.00041095,31]
[334259585,1722873040993,-500.0,0.00041095,21]
[334259586,1722873041003,-500.0,0.00041095,31]
[334259587,1722873041015,-500.0,0.00041095,31]
[334259588,1722873041024,-500.0,0.00041095,31]
[334259589,1722873041032,-1528.19,0.00041095,20]
[334259590,1722873041041,-502.11332486,0.00041095,31]
[334259591,1722873041050,-500.0,0.00041095,31]
[334259592,1722873041059,-500.0,0.00041095,31]
[334259593,1722873041071,-500.0,0.00041095,31]
[334259594,1722873041080,-500.0,0.00041095,31]
[334259595,1722873041093,-500.0,0.00041095,31]
[334259596,1722873041103,-572.21799154,0.00041095,31]
[334259597,1722873041112,-500.0,0.00041095,31]
[334259598,1722873041121,-500.0,0.00041095,31]
[334259599,1722873041130,-500.0,0.00041095,31]
[334259600,1722873041139,-500.0,0.00041095,31]
[334259601,1722873041148,-500.0,0.00041095,31]
[334259602,1722873041158,-504.46646769,0.00041095,31]
[334259603,1722873041167,-500.0,0.00041095,31]
[334259604,1722873041178,-500.0,0.00041095,31]
[334259605,1722873041187,-500.0,0.00041095,31]
[334259606,1722873041196,-500.0,0.00041095,31]
[334259607,1722873041226,-561.90265207,0.00041095,31]
[334259608,1722873041238,-500.0,0.00041095,31]
[334259609,1722873041248,-500.0,0.00041095,31]
[334259610,1722873041258,-500.0,0.00041095,31]
[334259612,1722873041269,-500.0,0.00041095,31]
[334259614,1722873041279,-500.0,0.00041095,31]
[334259616,1722873041289,-500.0,0.00041095,31]
[334259618,1722873041300,-500.0,0.00041095,31]
[334259621,1722873041310,-500.0,0.00041095,31]
[334259623,1722873041322,-500.0,0.00041095,31]
[334259625,1722873041331,-503.37099468,0.00041095,31]
[334259627,1722873041344,-329.68998401,0.00041095,31]
[334259629,1722873041354,-500.0,0.00041095,31]
[334259631,1722873041364,-500.0,0.00041095,31]
[334259633,1722873041374,-554.21286629,0.00041095,31]
[334259635,1722873041383,-500.0,0.00041095,31]
[334259637,1722873041394,-500.0,0.00041095,31]
[334259639,1722873041404,-255.02800001,0.00041095,31]
[334259641,1722873041414,-500.0,0.00041095,31]
[334259643,1722873041427,-500.0,0.00041095,31]
[334259645,1722873041437,-500.0,0.00041095,31]
[334259647,1722873041447,-500.0,0.00041095,31]
[334259650,1722873041457,-500.0,0.00041095,31]
[334259652,1722873041467,-544.94,0.00041095,31]
[334259654,1722873041478,-500.97354587,0.00041095,31]
[334259656,1722873041488,-500.0,0.00041095,31]
[334259658,1722873041499,-500.0,0.00041095,31]
[334259660,1722873041509,-500.0,0.00041095,31]
[334259662,1722873041519,-500.0,0.00041095,31]